Cogmind - Beta 15 @@@ ROGUE MODE // 2025.10.21 @ 14:52:52 Player: Rentaro Result: Destroyed by EF-D9P(R) with Subdweller Laser Performance ------------- Evolutions (0) 0 Regions Visited (2) 400 Robots Destroyed (17) 85 Value Destroyed (386) 386 Prototype IDs (0) 0 Alien Tech Used (0) 0 Bonus (0) 0 TOTAL SCORE: 871 Bonus ------- None Cogmind --------- Core Integrity 0/250 Matter 147/300 Energy 117/250 System Corruption 4% Temperature Cool (6) Movement Walking (140) Location -10/Subcaves Parts ------- > --- POWER (1) -------- Ion Engine > --- PROPULSION (2) --- Makeshift Leg Subdweller Monowheel > --- UTILITY (2) ------ Structural Scanner > --- WEAPON (2) ------- Battle Cannon > --- INVENTORY (5) ---- (None) Peak State ------------ > --- POWER ------------ Subdweller Power Source > --- PROPULSION ------- Subdweller Monowheel Subdweller Monowheel > --- UTILITY ---------- Scrap Shield > --- WEAPON ----------- Battle Cannon Battle Cannon > --- INVENTORY -------- Ion Engine Makeshift Leg Structural Scanner [Rating: 14] Favorites ----------- Power Light Ion Engine Engine Light Ion Engine Propulsion Aluminum Leg Leg Aluminum Leg Wheel Subdweller Monowheel Utility Small Storage Unit Device Structural Scanner Storage Small Storage Unit Protection Scrap Shield Weapon Battle Cannon Energy Gun Small Laser Ballistic Gun Light Assault Rifle Ballistic Cannon Battle Cannon Build | -11 -10 -10 ------- Run | Yrd Mat Sub Slots Evolved . | . . . Power . | . . . Propulsion . | . . . Utility . | . . . Weapon . | . . . Parts Attached 21 | 6 3 12 Power 4 | 1 . 3 Engine 4 | 1 . 3 Core . | . . . Reactor . | . . . Propulsion 6 | 1 1 4 Treads . | . . . Leg 4 | 1 1 2 Wheel 2 | . . 2 Hover . | . . . Flight . | . . . Utility 3 | 1 1 1 Device 1 | . 1 . Storage 1 | 1 . . Processor . | . . . Hackware . | . . . Protection 1 | . . 1 Artifact . | . . . Weapon 8 | 3 1 4 Energy Gun 1 | 1 . . Energy Cannon . | . . . Ballistic Gun 5 | 2 1 2 Ballistic Cannon 2 | . . 2 Launcher . | . . . Special Weapon . | . . . Impact Weapon . | . . . Slashing Weapon . | . . . Piercing Weapon . | . . . Special Melee Weapon . | . . . Unidentified Prototypes . | . . . Parts Lost 6 | . . 6 Power 2 | . . 2 Propulsion 2 | . . 2 Utility 1 | . . 1 Weapon 1 | . . 1 Highest Loss Streak 2 | . . 2 To Critical Strikes . | . . . Average Backups 4 | . 3 4 Power 1 | . 1 1 Propulsion . | . . . Utility . | . . . Weapon 2 | . 2 2 Tool/Special . | . . . Unused Backups 4 | . . 4 Power . | . . . Propulsion . | . . . Utility . | . . . Weapon 4 | . . 4 Tool/Special . | . . . Average Slot Usage (%) 85 | . 86 85 Engine 12 | . 14 12 Leg 12 | . 19 9 Wheel 7 | . . 10 Device 11 | . 9 11 Storage 10 | . 14 9 Protection 1 | . . 1 Ballistic Gun 11 | . 28 5 Ballistic Cannon 16 | . . 22 Peak Build Rating 14 | 5 7 14 Average Rating 8 | 4 6 8 On Entrance 4 | . 5 7 Naked Turns . | . . . Heaviest Build 29 | 11 11 29 Greatest Support 40 | 10 20 40 Greatest Overweight (x) 2 | 2 1 1 Average Overweight (x) . | . . . Largest Inventory Capacity 8 | 8 8 8 Average Capacity 7 | 7 8 7 Most Carried 8 | 2 8 8 Average Carried 4 | . 3 4 Final Capacity 8 | 8 8 5 Final Carried 8 | 1 8 . Class Distribution -------------------- 75% | Mutant 14% | Scavenger-Mutant 10% | Subdweller-Mutant Dominant Class ---------------- Mutant | -10/Materials Mutant | -10/Subcaves Resources | -11 -10 -10 ----------- Run | Yrd Mat Sub Matter Collected 815 | 223 136 456 Remotely . | . . . Salvage Created 339 | . 178 161 Parts 34 | . 25 9 Haulers Intercepted . | . . . Recyclers Shooed . | . . . Parts Field Recycled . | . . . Retrieved Matter . | . . . Parts Self-Destructed 4 | . . 4 Prevented . | . . . Kills | -11 -10 -10 ------- Run | Yrd Mat Sub Combat Hostiles Destroyed 14 | . 7 7 Guns 9 | . 7 2 Cannons 5 | . . 5 Classes Destroyed 5 | . 4 1 Worker 1 | . 1 . Builder 2 | . 2 . Swarmer 6 | . 6 . Grunt 3 | . 1 2 Subdweller 5 | . . 5 Best Kill Streak 3 | . 3 2 Combat Bots Only 3 | . 3 2 Max Kills in Single Turn 1 | . 1 1 Gunslinging . | . . . Exploded . | . . . Melee . | . . . Uniques/NPCs Destroyed . | . . . Combat | -11 -10 -10 -------- Run | Yrd Mat Sub Hostile Shots Fired 90 | . 42 48 Missed 23 | . 12 11 Hits 67 | . 30 37 Projectile 67 | . 30 37 AOE 5 | . . 5 Critical Strikes 3 | . 1 2 Damage Taken 1190 | . 254 936 Core 251 | . 50 201 Absorbed by Shields . | . . . Core Remaining (%) 100 | 100 . . Volleys Fired 91 | . 38 53 Largest 2 | . 2 2 Hottest 66 | . 40 66 Shots Fired 179 | . 76 103 Gun 104 | . 76 28 Cannon 75 | . . 75 Launcher . | . . . Special . | . . . Kinetic 179 | . 76 103 Thermal . | . . . Explosive . | . . . Electromagnetic . | . . . Robot Hit Streak 18 | . 7 18 Robot Miss Streak 6 | . 6 6 Penetration Max . | . . . Secondary Targets 1 | . 1 . Max Gunslinging Chain 1 | . 1 . Shots Hit Robots 88 | . 38 50 Core Hits 35 | . 18 17 Critical Kills . | . . . Critical Parts Destroyed 1 | . 1 . Critical Strikes 4 | . 1 3 Destroy 1 | . 1 . Blast 3 | . . 3 Melee Attacks . | . . . Impact . | . . . Slashing . | . . . Piercing . | . . . Sneak Attacks . | . . . Combat Hostiles . | . . . Follow-up Attacks . | . . . Damage Inflicted 1097 | . 343 754 Guns 605 | . 337 268 Cannons 486 | . . 486 Explosions . | . . . Melee . | . . . Ramming 6 | . 6 . Kinetic 1091 | . 337 754 Thermal . | . . . Explosive . | . . . Electromagnetic . | . . . Impact . | . . . Slashing . | . . . Piercing . | . . . Highest Corruption 4 | . 4 4 Average Corruption 3 | . 3 4 Corruption Purged . | . . . Corruption Blocked . | . . . Effects 37 | . 2 35 Message Errors 9 | . 2 7 Matter Fused 8 | . . 8 Heat Flow Errors 3 | . . 3 Energy Discharges 5 | . . 5 Data Loss (minor) 5 | . . 5 Data Loss (major) 1 | . . 1 Misfires 3 | . . 3 Weapon Failures 3 | . . 3 Overload Shots . | . . . Overflow Damage . | . . . Projectiles . | . . . Explosions . | . . . Melee . | . . . Knockbacks 8 | . . 8 Impact . | . . . Kinetic 8 | . . 8 Secondary . | . . . Self-Inflicted Damage . | . . . Shots . | . . . Rammed . | . . . Targets Rammed 1 | . 1 . Kicked 1 | . 1 . Crushed . | . . . Highest Temperature 193 | . 12 193 Average Temperature 63 | . 9 80 Received Heat Transfer 156 | . 18 138 Siege Activations . | . . . Martial Activations . | . . . Shielding Activations . | . . . Robots Disrupted . | . . . Combat Hostiles . | . . . Robots Corrupted . | . . . Combat Hostiles . | . . . Parts Fried . | . . . Impact Corruptions . | . . . Robots Melted . | . . . Combat Hostiles . | . . . Parts Melted . | . . . Heat Transferred . | . . . Parts Sabotaged . | . . . Parts Stolen . | . . . Parts Stripped . | . . . Power Chain Reactions . | . . . Alert | -11 -10 -10 ------- Run | Yrd Mat Sub Maximum Alert Level . | . . . Low Security (%) 100 | 100 100 . Level 1 . | . . . Level 2 . | . . . Level 3 . | . . . Level 4 . | . . . Level 5 . | . . . High Security . | . . . Max Security . | . . . Peak Influence 75 | . 75 . Initial . | . . . Average 21 | . 24 . Influence Increases 250 | . 200 50 Destroy 0b10 Robot/C 180 | . 140 40 Destroy 0b10 Robot/NC 15 | . 15 . Destroy Leader 40 | . 30 10 Lose Combat Pursuer 15 | . 15 . Influence Decreases 250 | . 165 85 Entered New Map 18 | . . 18 Time Decay 212 | . 165 47 Lost Part 20 | . . 20 Squads Dispatched 3 | . 3 . Investigation 1 | . 1 . Extermination . | . . . Reinforcement 2 | . 2 . Assault . | . . . Garrison . | . . . Intercept . | . . . Searches Triggered . | . . . Construction Impeded . | . . . Haulers Reinforced . | . . . Active Scanning Responses . | . . . Cargo Convoy Interrupts . | . . . Stealth | -11 -10 -10 --------- Run | Yrd Mat Sub Distress Signals 1 | . 1 . Communications Jammed . | . . . Distress Signals . | . . . Times Spotted 26 | . 16 10 Peak Tracking Total 4 | . 4 2 Tactical Retreats 1 | . 1 . Traps | -11 -10 -10 ------- Run | Yrd Mat Sub Traps Triggered 4 | . 3 1 Indirectly . | . . . Trap Hack Attempts . | . . . Triggered . | . . . Disarmed . | . . . Reprogrammed . | . . . Reused . | . . . Traps Extracted . | . . . Installed . | . . . Triggered . | . . . Machines | -11 -10 -10 ---------- Run | Yrd Mat Sub Machines Disabled . | . . . Max in Single Turn . | . . . Machines Repaired . | . . . Machines Dismantled . | . . . Machines Sabotaged . | . . . Overloaded Fab Kills . | . . . Hacking | -11 -10 -10 --------- Run | Yrd Mat Sub Machines Accessed 1 | . 1 . Terminals 1 | . 1 . Fabricators . | . . . Repair Stations . | . . . Recycling Units . | . . . Scanalyzers . | . . . Garrison Access . | . . . Total Hacks 1 | . 1 . Successful 1 | . 1 . Failed . | . . . Catastrophic . | . . . Database Lockouts . | . . . Manual . | . . . Terminals 1 | . 1 . Fabricators . | . . . Repair Stations . | . . . Recycling Units . | . . . Scanalyzers . | . . . Garrison Access . | . . . Terminal Hacks 1 | . 1 . Zone Layout 1 | . 1 . Fabricator Hacks . | . . . Repair Station Hacks . | . . . Recycling Unit Hacks . | . . . Scanalyzer . | . . . Garrison Access Hacks . | . . . Unauthorized Hacks . | . . . Terminals . | . . . Fabricators . | . . . Repair Stations . | . . . Recycling Units . | . . . Scanalyzers . | . . . Garrison Access . | . . . Data Cores Recovered . | . . . Used . | . . . Hacking Detections . | . . . Full Trace Events . | . . . Feedback Events . | . . . Feedback Blocked . | . . . Robot Schematics Acquired . | . . . Robots Built . | . . . Authchips . | . . . Time . | . . . Total Robot Build Rating . | . . . Part Schematics Acquired . | . . . Parts Built . | . . . Authchips . | . . . Time . | . . . Total Part Build Rating . | . . . Parts Repaired . | . . . Time . | . . . Parts Recycled . | . . . Recycled Matter . | . . . Retrieved Matter . | . . . Retrieved Components . | . . . Parts Scanalyzed . | . . . Part Schematics Acquired . | . . . Parts Damaged . | . . . Bothacking | -11 -10 -10 ------------ Run | Yrd Mat Sub Used RIF Installer . | . . . Robots Hacked . | . . . Non-combat . | . . . Combat . | . . . Robot Hacks Applied . | . . . Relay Couplers Released . | . . . Fabnet Peak Effective % . | . . . Robots Rewired . | . . . Allies Hacked . | . . . Hacks Repelled . | . . . Allies | -11 -10 -10 -------- Run | Yrd Mat Sub Total Allies . | . . . Largest Group . | . . . Highest-Rated Group . | . . . Highest-Rated Ally . | . . . Total Orders . | . . . Ally Attacks . | . . . Total Damage . | . . . Kills . | . . . Allies Corrupted . | . . . Allies Melted . | . . . Intel | -11 -10 -10 ------- Run | Yrd Mat Sub Active Infowar (turns) 1568 | . 382 1186 Structural 1568 | . 382 1186 Robot Analysis Total . | . . . Derelict Logs Recovered . | . . . Drone Launches . | . . . Drone Recoveries . | . . . Exploration | -11 -10 -10 ------------- Run | Yrd Mat Sub Turns Passed 2029 | 74 540 1415 Spaces Moved 1165 | 40 291 834 Core 7 | 7 . . Treads . | . . . Legs 696 | 33 291 372 Wheels 462 | . . 462 Hover . | . . . Flight . | . . . Fastest Speed 50 | 50 120 110 Average Speed 140 | 159 144 137 Slowest Speed 190 | 190 190 190 Overloaded Moves . | . . . Propulsion Burnouts . | . . . Robots Hopped . | . . . Potential Cave-ins . | . . . Cave-ins Triggered . | . . . Exploration Rate (%) 32 | 3 54 39 Regions Visited 2 Branch Regions 1 Pre-discovered Areas . | . . . Known Exits Taken . | . . . Unknown Exits Taken 2 | 1 1 . Scrap Searched 7 | . . 7 Spaces Dug . | . . . Terrain Destroyed 1 | . . 1 Melee . | . . . Projectile 1 | . . 1 AOE . | . . . Terrain Rammed . | . . . Walls Destroyed . | . . . Machines Disabled . | . . . Actions | -11 -10 -10 --------- Run | Yrd Mat Sub Total 1402 | 48 347 1007 Wait 90 | . 9 81 Move 1163 | 39 290 834 Hop . | . . . Pick Up 15 | 2 6 7 Fast Attach 9 | 5 2 2 Attach 9 | . . 9 Detach 3 | . . 3 Swap 7 | 1 1 5 Drop 14 | 1 . 13 Fire 91 | . 38 53 Melee . | . . . Ram . | . . . Kick 1 | . 1 . Crush . | . . . Escape Stasis . | . . . Rewire . | . . . Trap . | . . . Miscellaneous . | . . . Route ------- -11/Scrapyard -10/Materials (discovered 4 exits: [*Mat] / [*Min x2] / [*Sub]) -10/Subcaves (discovered 2 exits: [*Mat x2]) History --------- Turn | Location | Event 6 | -11/Scrapyard | Discovered new exit (range 16) 75 | -11/Scrapyard | Entered Materials 174 | -10/Materials | Discovered new exit (range 14) 311 | -10/Materials | Build established: Mutant 352 | -10/Materials | Discovered new exit (range 16) 428 | -10/Materials | Discovered new exit (range 11) 459 | -10/Materials | Discovered new exit (range 9) 615 | -10/Materials | Entered Subcaves 616 | -10/Subcaves | Approached by a straggling Scientist 760 | -10/Subcaves | Shifting Twisted Machinery released Battle Cannon 836 | -10/Subcaves | Core integrity fell below 50% 889 | -10/Subcaves | Shifting Twisted Machinery released Scrap Shield 1573 | -10/Subcaves | Shifting Twisted Machinery released Mak. Leg 1574 | -10/Subcaves | Shifting Twisted Machinery released Scrap Shield 1623 | -10/Subcaves | A swath of the cavern ceiling suddenly collapsed 1803 | -10/Subcaves | Discovered new exit (range 6) 1832 | -10/Subcaves | Discovered new exit (range 8) 2025 | -10/Subcaves | Ambushed by Subdweller buried in earth 2026 | -10/Subcaves | Core integrity fell below 20% 2030 | -10/Subcaves | Destroyed by EF-D9P(R) with Subdweller Laser Last Messages --------------- 01852_ Found 31 Matter. 01853_ Acquired 31 matter. 01854_ Acquired Piercing Trap. 01855_ Dropped Piercing Trap. 01861_ Acquired 2 matter. 01865_ Dropped Broken Sub. Monowheel. 01867_ Acquired 3 matter. 01890_ System corrupted: FCS attempts to trigger Battle Cannon. 01890_ System corrupted: Battle Cannon misfires. 01941_ System corrupted: Energy discharge (-38). 01965_ BG3T073FDIP0XL:DUFPIDKFJ, 107KLJLXFRVI: 02016_ A2-7BH(R) knocked back. 02019_ USC0QP&MCCG#W SHAF9IU&MQ 02019_ A2-7BH(R) destroyed. 02024_ Acquired 5 matter. 02025_ Battle Cannon destroyed. 02025_ EF-D9P(R) Sub. Monowheel blasted off. 02025_ EF-D9P(R) knocked back. 02026_ EF-D9P(R): "ARGHSUB!" Map ----- +----------------------------------------------------+ | ?????????????????????????????????????????????? | | ?????????????????????????????????????????????? | | ?????????????????????????????????????????????? | | ?????????????????????????????????????????????? | | ?????????????????????????????????????????????? | | ?????????????????????????????????????????????? | | ?????????????????????????????????????????????? | | ?????????????????????????????????????????????? | | ?????????????????????????????????????????????? | | ?????????????????????????????????????????????? | | ?????????????????????????????????????????????? | | ?????????????????????????????????????????????? | | ?????????????????????????????????????????????? | | ??????????????????????????""?????????????????? | | ??????????????????????????""" "##????????????? | | ?????????????????????????? """##????????????? | | ???????????????????#####?# " "##????????????? | | ???????????????????######## " ??????????????? | | ???????????????????## ### "" #??????????????? | | ???????????????????## ###?????????????? | | ???????????????????## ## ####????????????? | | ???????????????????## ;; ###????????????? | | ???????????????????## ! ##????????????? | | ???????????????????## R ###????????????? | | ???????????????????## ;; ##?????????????? | | ???????????????????## #;;@ ##?????????????? | | ?????????????????????## = ##?????????????? | | ?????????????????????##R% ##?????????????? | | #????????????????????### ##?????????????? | | ####?????????????????### #";;;##?????????????? | | #####?????????????????## "######?????????????? | | ###?????????????????##;#######?????????????? | | ##?????????????????## ####????????????????? | | ####????????????????###;#"##????????????????? | | ####????????????????####" ###???????????????? | | ###????????????????##"#"####???????????????? | | ##???????????????###"""""##???????????????? | | ###??????????????#####"""##???????????????? | | ####?????????????##"##"#"##???????????????? | | ###?????????????###"# ####???????????????? | | ##?????????????###"""####???????????????? | | # ##########??????#### ######??????????????? | | # #############???#### #"#######?????????????? | | # # #### ####?###### # ###?????????????? | | ####### ## " ##?????????????? | | # ##### ####?????????????? | | ## #### " ####?????????????? | | ### ## ## " ##???????????????? | | ###### ## "" ###???????????????? | | ## # # ####### ####???????????????? | +----------------------------------------------------+ Best States ------------- Heat Dissipation 25 Energy Generation 15 Energy Capacity 250 Matter Stores 300 Matter Capacity 300 Sight Range 16 Terrain Scan Density 10 Armor Coverage 800 Evasion (%) 55 Item Schematics ----------------- None Robot Schematics ------------------ None Fabricated ------------ Nothing Repaired ---------- Nothing Alien Tech Used ----------------- None Achievements -------------- None Challenges ------------ None Game ------ Seed SupersonicCompactKatana Manual? 0 Play Time 00:16:53 Cumulative 63.7 hours Start 2025.10.21 @ 13:43:58 End 2025.10.21 @ 14:52:52 Sessions 1 Manual Loads 0 Difficulty Rogue Special Mode None Game No. 34 Rogue 34 Adventurer 0 Explorer 0 Win Type - Total 1 Types 0/0/0/1/0/0/0/0/0/0 Lore% 28 Gallery% 31 Achievement% 39 Wizard Run 0 Options --------- Layout 1 ASCII 0 Keyboard 0 Movement Mouse Keybinds 0 Fullscreen 1 Font 24/Terminus Map View 50x35 Zoom Use 0% Tactical HUD 1 Map Filters NONE Filters NONE Steam 1 RUN: 688121c6-99b8-4338-8531-1ebba5cba978